fUSD/lending_fUSD_20260214
["ID","MTS","AMOUNT","RATE_DAILY","PERIOD"]
[405381041,1771102239789,-2678.61,0.00014633,2]
[405381042,1771102239798,-250.0,0.00014764,2]
[405381043,1771102239808,-250.0,0.00014764,2]
[405381044,1771102239817,-2678.61,0.00014936,2]
[405381045,1771102239828,-250.0,0.00015097,2]
[405381046,1771102239837,-2678.61,0.00015238,2]
[405381047,1771102239847,-2678.61,0.00015541,2]
[405381048,1771102239859,-6746.97,0.00015699,2]
[405381049,1771102239869,-2678.61,0.00015844,2]
[405381050,1771102239879,-991.23,0.00015863,2]
[405381051,1771102239887,-1000.0,0.00015897,2]
[405381052,1771102239896,-549.43,0.00015982,2]
[405381053,1771102239906,-500.0,0.00016048,2]
[405381055,1771102239915,-2678.61,0.00016147,2]
[405381056,1771102239925,-150.0,0.00016257,2]
[405381057,1771102239934,-166.047,0.00016257,2]
[405381058,1771102239944,-1282.172,0.00016257,2]
[405381059,1771102239953,-2678.61,0.00016449,2]
[405381060,1771102239963,-963.56052316,0.00016597,2]
[405381061,1771102239972,-4127.1189,0.00016597,2]
[405381062,1771102239982,-1120.444,0.00016597,2]
[405381063,1771102239991,-185.59095436,0.00016597,2]
[405381064,1771102240000,-500.0,0.00016696,2]
[405381065,1771102240010,-503.99679286,0.00016696,2]
[405381066,1771102240019,-1000.0,0.00016697,2]
[405381067,1771102240030,-2678.61,0.00016752,2]
[405381068,1771102240039,-2571.70728591,0.00016767,2]
[405381069,1771102240050,-4866.3121,0.00016797,2]
[405381070,1771102240060,-32828.4274,0.00016797,2]
[405381071,1771102240070,-1471.4246,0.00016797,2]
[405381072,1771102240079,-5897.4629319,0.00016834,2]
[405381073,1771102240089,-500.0,0.00016896,2]
[405381074,1771102240099,-500.0,0.00016896,2]
[405381075,1771102240110,-500.0,0.00016896,2]
[405381076,1771102240120,-500.0,0.00016896,2]
[405381077,1771102240129,-500.0,0.00016896,2]
[405381078,1771102240139,-2678.61,0.00017055,2]
[405381079,1771102240149,-242.64,0.000173,7]
[405381080,1771102240159,-2678.61,0.00017358,2]
[405381081,1771102240168,-2678.61,0.0001766,2]
[405381082,1771102240179,-991.23,0.00017846,2]
[405381083,1771102240188,-1000.0,0.00017884,2]
[405381084,1771102240198,-377.47117106,0.000179,2]
[405381085,1771102240208,-2678.61,0.00017963,2]
[405381086,1771102240218,-151.73231443,0.0001799,2]
[405381087,1771102240229,-505.96262885,0.00017999,2]
[405381088,1771102240239,-500.0,0.00017999,2]
[405381089,1771102240249,-281.36684652,0.00017999,2]
[405381090,1771102240259,-569495.81676085,0.00018,2]
[405381091,1771102240274,-6996.92806839,0.00018,2]
[405381092,1771102240294,-616.89822447,0.00018,2]
[405381118,1771102245454,-524.51028514,0.00018,2]
[405381119,1771102245617,-4482.6,0.00018,2]
[405381120,1771102245629,-12438.2000002,0.00018,2]
[405381133,1771103431585,-434.37659752,0.00016596,2]
[405381134,1771103431599,-65.62340248,0.00016596,2]
[405381135,1771103431609,-216.88,0.000167,2]
[405381136,1771103431619,-456.05819229,0.00017541,2]
[405381137,1771103431632,-569.67880771,0.00017541,2]
[405381138,1771103431642,-377.47117106,0.000177,2]
[405381139,1771103431653,-869.24856348,0.000177,2]
[405381140,1771103431663,-358.80324904,0.000177,2]
[405381141,1771103431673,-700.0,0.00017721,2]
[405381142,1771103431683,-151.73231443,0.00017789,2]
[405381143,1771103431694,-4554.13398601,0.00017797,2]
[405381144,1771103431703,-500.0,0.00017798,2]
[405381145,1771103431714,-500.0,0.00017798,2]
[405381146,1771103431724,-500.0,0.00017798,2]
[405381147,1771103431734,-500.0,0.00017798,2]
[405381148,1771103431744,-500.0,0.00017798,2]
[405381149,1771103431754,-500.0,0.00017798,2]
[405381150,1771103431764,-500.0,0.00017798,2]
[405381151,1771103431775,-500.0,0.00017798,2]
[405381152,1771103431785,-500.0,0.00017798,2]
[405381153,1771103431795,-500.0,0.00017798,2]
[405381154,1771103431815,-500.0,0.00017798,2]
[405381155,1771103431828,-492.60440484,0.00017798,2]
[405381156,1771103431842,-7.39559516,0.00017798,2]
[405381157,1771103431853,-379.61389394,0.00017798,2]
[405381158,1771103431871,-120.38610606,0.00017798,2]
[405381159,1771103431882,-500.0,0.00017798,2]
[405381160,1771103431893,-500.0,0.00017798,2]
[405381162,1771103431904,-500.0,0.00017798,2]
[405381163,1771103431919,-500.0,0.00017798,2]
[405381164,1771103431929,-500.0,0.00017798,2]
[405381165,1771103431939,-500.0,0.00017798,2]
[405381166,1771103431950,-297.84725014,0.00017798,2]
[405381167,1771103431972,-202.15274986,0.00017798,2]
[405381168,1771103431983,-500.0,0.00017798,2]
[405381169,1771103431993,-500.0,0.00017798,2]
[405381170,1771103432004,-500.0,0.00017798,2]
[405381171,1771103432014,-500.0,0.00017798,2]
[405381172,1771103432025,-500.0,0.00017798,2]
[405381173,1771103432036,-500.0,0.00017798,2]
[405381174,1771103432046,-500.0,0.00017798,2]
[405381175,1771103432057,-464.62603895,0.00017798,2]
[405381176,1771103432068,-500.0,0.00017798,2]
[405381177,1771103432078,-500.0,0.00017798,2]
[405381178,1771103432088,-500.0,0.00017798,2]
[405381179,1771103432099,-350.0,0.00017798,2]
[405381180,1771103432109,-163.91800301,0.00017798,2]
[405381181,1771103432119,-190.67760358,0.00017798,2]
[405381182,1771103432130,-500.0,0.00017798,2]
[405381183,1771103432141,-578.01354864,0.00017798,2]
[405381184,1771103432154,-32539.54814191,0.00017799,2]
[405381185,1771103432167,-8248.2190732,0.00017799,2]
[405381186,1771103432179,-9858.74509393,0.00017799,2]
[405381187,1771103432197,-418.75,0.00017799,2]
[405381213,1771103439829,-575982.18972171,0.00017799,2]
[405381222,1771103443667,-713.98552511,0.00017799,2]
[405381228,1771103445858,-2196.5991,0.00017799,2]
[405381229,1771103445968,-755.84368382,0.00017799,2]
[405381230,1771103445980,-355.56820758,0.00017799,2]
[405381245,1771103751314,7400.0,0.00022,120]
[405381246,1771103941099,2061.23,0.00012236,2]
[405381247,1771103941299,2061.23,0.00012512,2]
[405381248,1771103941488,2061.23,0.00012788,2]
[405381249,1771104086424,175.05,0.00012371,2]
[405381250,1771104232706,538.39,0.000124,2]
[405381291,1771104631788,-2061.23,0.00013064,2]
[405381292,1771104631799,-257.0,0.00013064,2]
[405381293,1771104631808,-778.20156595,0.00013118,2]
[405381294,1771104631818,-2061.23,0.0001334,2]
[405381295,1771104631827,-2061.23,0.00013616,2]
[405381296,1771104631836,-1696.288991,0.00013679,2]
[405381297,1771104631847,-1200.0,0.00013679,2]
[405381298,1771104631857,-300.0,0.00013679,2]
[405381299,1771104631866,-300.0,0.00013748,2]
[405381300,1771104631876,-2061.23,0.00013892,2]
[405381301,1771104631885,-2061.23,0.00014168,2]
[405381302,1771104631894,-250.0,0.0001437,2]
[405381303,1771104631904,-2061.23,0.00014444,2]
[405381304,1771104631914,-4081.30351588,0.000145,2]
[405381305,1771104631925,-710.81,0.000145,2]
[405381306,1771104631937,-273.63724884,0.000145,2]
[405381307,1771104631949,-339.75260614,0.000145,2]
[405381308,1771104631960,-276.65889505,0.000145,2]
[405381309,1771104631971,-137.83773409,0.000145,2]
[405381310,1771104631984,-966.37765325,0.0001472,2]
[405381311,1771104631996,-1094.85234675,0.0001472,2]
[405381312,1771104632005,-300.0,0.00014991,2]
[405381313,1771104632015,-455.14765325,0.00014996,2]
[405381314,1771104632026,-478.48000092,0.00014996,2]
[405381315,1771104632038,-1127.60234583,0.00014996,2]
[405381317,1771104632047,-1200.0,0.00015047,2]
[405381319,1771104632057,-276.0,0.00015066,2]
[405381320,1771104632066,-2061.23,0.00015272,2]
[405381322,1771104632076,-200.0,0.00015293,2]
[405381324,1771104632085,-263.98,0.00015385,2]
[405381326,1771104632096,-792.98,0.0001542,2]
[405381327,1771104632106,-2061.23,0.00015548,2]
[405381328,1771104632115,-2061.23,0.00015824,2]
[405381329,1771104632124,-150.0,0.00015824,2]
[405381330,1771104632134,-150.0,0.00015847,2]
[405381331,1771104632143,-2061.23,0.000161,2]
[405381332,1771104632155,-2061.23,0.00016376,2]
[405381333,1771104632166,-2061.23,0.00016652,2]
[405381334,1771104632179,-2061.23,0.00016928,2]
[405381335,1771104632188,-1487.19424334,0.00017194,2]
[405381336,1771104632198,-5529.0,0.000172,5]
[405381337,1771104632208,-2061.23,0.00017204,2]
[405381338,1771104632217,-792.98,0.00017348,2]
[405381339,1771104632227,-166.048,0.00017443,2]
[405381340,1771104632238,-942.844,0.00017443,2]
[405381341,1771104632247,-2061.23,0.0001748,2]
[405381342,1771104632257,-185.59095436,0.00017498,2]
[405381343,1771104632267,-51.63281086,0.00017498,2]
[405381344,1771104632280,-738.14510151,0.00017498,2]
[405381345,1771104632291,-339.7240539,0.00017498,2]
[405381346,1771104632301,-339.7240539,0.00017545,2]
[405381347,1771104632310,-789.77791234,0.00017572,2]
[405381348,1771104632318,-339.7240539,0.00017591,2]
[405381349,1771104632326,-500.0,0.00017596,2]
[405381350,1771104632335,-500.0,0.00017596,2]
[405381351,1771104632346,-18.98247006,0.00017596,2]
[405381352,1771104632356,-481.01752994,0.00017596,2]
[405381353,1771104632365,-386.27712341,0.00017596,2]
[405381354,1771104632375,-113.72287659,0.00017596,2]
[405381355,1771104632384,-500.0,0.00017596,2]
[405381356,1771104632394,-500.0,0.00017596,2]
[405381357,1771104632403,-500.0,0.00017596,2]
[405381358,1771104632413,-500.0,0.00017596,2]
[405381359,1771104632422,-500.0,0.00017596,2]
[405381360,1771104632431,-500.0,0.00017596,2]
[405381361,1771104632441,-500.0,0.00017596,2]
[405381362,1771104632450,-500.0,0.00017596,2]
[405381363,1771104632460,-500.0,0.00017596,2]
[405381364,1771104632472,-500.0,0.00017596,2]
[405381365,1771104632482,-500.0,0.00017596,2]
[405381366,1771104632491,-500.0,0.00017596,2]
[405381367,1771104632500,-500.0,0.00017596,2]
[405381368,1771104632511,-500.0,0.00017596,2]
[405381369,1771104632521,-500.0,0.00017596,2]
[405381370,1771104632530,-500.0,0.00017596,2]
[405381371,1771104632539,-500.0,0.00017596,2]
[405381372,1771104632549,-500.0,0.00017596,2]
[405381373,1771104632558,-500.0,0.00017596,2]
[405381374,1771104632580,-500.0,0.00017596,2]
[405381375,1771104632593,-500.0,0.00017596,2]
[405381376,1771104632602,-500.0,0.00017596,2]
[405381377,1771104632613,-500.0,0.00017596,2]
[405381378,1771104632623,-500.0,0.00017596,2]
[405381379,1771104632633,-500.0,0.00017596,2]
[405381380,1771104632642,-500.0,0.00017596,2]
[405381381,1771104632652,-500.0,0.00017596,2]
[405381382,1771104632663,-500.0,0.00017596,2]
[405381383,1771104632672,-500.0,0.00017596,2]
[405381384,1771104632683,-500.0,0.00017596,2]
[405381385,1771104632692,-500.0,0.00017596,2]
[405381386,1771104632702,-534.25663959,0.00017596,2]
[405381387,1771104632712,-500.0,0.00017596,2]
[405381388,1771104632722,-500.0,0.00017596,2]
[405381389,1771104632731,-500.0,0.00017596,2]
[405381390,1771104632742,-500.0,0.00017596,2]
[405381391,1771104632751,-500.0,0.00017596,2]
[405381392,1771104632761,-500.0,0.00017596,2]
[405381393,1771104632770,-500.0,0.00017596,2]
[405381394,1771104632780,-500.0,0.00017596,2]
[405381395,1771104632790,-500.0,0.00017596,2]
[405381396,1771104632800,-171.45052838,0.00017596,2]
[405381397,1771104632810,-1473.0119,0.00017598,2]
[405381398,1771104632819,-1000.0,0.00017598,2]
[405381399,1771104632829,-339.7240539,0.00017638,2]
[405381400,1771104632839,-789.77791234,0.00017646,2]
[405381401,1771104632848,-339.7240539,0.00017685,2]
[405381402,1771104632858,-505.96262885,0.00017697,2]
[405381403,1771104632868,-789.77791234,0.00017721,2]
[405381404,1771104632877,-339.7240539,0.00017731,2]
[405381405,1771104632887,-339.7240539,0.00017778,2]
[405381406,1771104632896,-789.77791234,0.00017795,2]
[405381407,1771104632905,-538.9555252,0.00017806,2]
[405381408,1771104632915,-800.0,0.00017808,2]
[405381409,1771104632925,-339.7240539,0.00017825,2]
[405381410,1771104632934,-789.77791234,0.00017869,2]
[405381411,1771104632943,-339.7240539,0.00017871,2]
[405381412,1771104632953,-2034.2383133,0.000179,5]
[405381413,1771104632962,-717.60649804,0.000179,2]
[405381414,1771104632972,-151.0,0.00017915,2]
[405381415,1771104632981,-19730.19676711,0.00017918,2]
[405381416,1771104633171,-444.80323289,0.00017918,2]
[405381417,1771104633183,-339.7240539,0.00017918,2]
[405381418,1771104633192,-789.77791234,0.00017943,2]
[405381419,1771104633201,-164.0320668,0.0001799,2]
[405381420,1771104633211,-164.0320668,0.0001799,2]
[405381421,1771104633220,-19654.61210347,0.00018,2]
[405381422,1771104633232,-291.47,0.00018,2]
[405381423,1771104633244,-334.02485,0.00018,2]
[405381424,1771104633255,-511.41,0.00018,2]
[405381425,1771104637869,-230.91602585,0.00017999,2]
[405381426,1771104637879,-500.0,0.00017999,2]
[405381427,1771104637889,-191.35645796,0.00017999,2]
[405381431,1771104639903,-308.64354204,0.00017999,2]
[405381432,1771104639912,-266.12103071,0.00017999,2]
[405381433,1771104639922,-281.36684652,0.00017999,2]
[405381434,1771104639931,-500.0,0.00017999,2]
[405381435,1771104639941,-355.5972098,0.00017999,2]
[405381436,1771104639951,-576949.07109264,0.00018,2]
[405381437,1771104639962,-608.27417625,0.00018,2]
[405381466,1771104644606,-474.3917825,0.00018,2]
[405381480,1771104986340,-1683.717262,0.00017508,2]
[405381481,1771104986364,-11066.6238,0.00017597,2]
[405381482,1771104986388,-800.0,0.00017808,2]
[405381483,1771104986412,-5660.7001,0.000179,2]
[405381484,1771104986436,-229.27028387,0.000179,2]
[405381485,1771104986460,-1000.0,0.000179,2]
[405381486,1771104986484,-1538.38209799,0.000179,2]
[405381487,1771104986508,-2369.33373702,0.000179,2]
[405381488,1771104986533,-182.4149165,0.000179,2]
[405381489,1771104986559,-1686.63596981,0.000179,2]
[405381490,1771104986596,-173.24958518,0.000179,2]
[405381491,1771104998694,-1609.5192386,0.00017989,2]
[405381492,1771104998718,-151.0,0.00017997,2]
[405381493,1771104998747,-300.0,0.00017999,2]
[405381494,1771104998771,-300.0,0.00017999,2]
[405381495,1771104998797,-161.64121809,0.00017999,2]
[405381496,1771104998822,-181.36684652,0.00017999,2]
[405381497,1771104998850,-500.0,0.00017999,2]
[405381498,1771104998876,-500.0,0.00017999,2]
[405381499,1771104998902,-500.0,0.00017999,2]
[405381500,1771104998931,-500.0,0.00017999,2]
[405381501,1771104998958,-500.0,0.00017999,2]
[405381502,1771104998989,-289.62051858,0.00017999,2]
[405381503,1771104999013,-500.0,0.00017999,2]
[405381504,1771104999036,-500.0,0.00017999,2]
[405381505,1771104999062,-205.5972098,0.00017999,2]
[405381506,1771104999086,-266.12103071,0.00017999,2]
[405381507,1771105025308,-802.44142686,0.00017808,2]
[405381508,1771105025334,-1202.55857314,0.00018,2]
[405381522,1771105831906,-1313.75073291,0.00016075,2]
[405381523,1771105831919,-782.18926709,0.00016075,2]
[405381524,1771105831930,-754.276,0.00017147,2]
[405381525,1771105831941,-250.0,0.00017682,2]
[405381526,1771105831951,-39682.63382348,0.000178,2]
[405381527,1771105831988,-1927.08341785,0.000178,2]
[405381528,1771105832000,-261.51995834,0.000178,2]
[405381529,1771105832012,-1398.14,0.000178,2]
[405381530,1771105832023,-900.0,0.000178,2]
[405381531,1771105832115,-436.19535342,0.000178,2]
[405381532,1771105832126,-10788.89307762,0.000178,2]
[405381541,1771105838938,-3281.5,0.000178,2]
[405381542,1771105838951,-796.24490861,0.000178,2]
[405381543,1771105839106,-411.41661105,0.000178,2]
[405381544,1771105839118,-259.41465,0.000178,2]
[405381557,1771105840240,-578853.15617967,0.000178,2]
[405381558,1771105840302,-1538.38209799,0.000178,2]
[405381559,1771105840314,-986.74351001,0.000178,2]
[405381566,1771105845127,-4540.0,0.000178,2]
[405381569,1771105845962,-11066.62381151,0.000178,2]
[405381578,1771105846505,-141.28204362,0.000178,2]
[405381582,1771106483836,618.47,0.00012284,2]
[405381583,1771106484043,618.47,0.00012561,2]
[405381584,1771106484256,618.47,0.00012838,2]
[405381585,1771106738967,-538.20487354,0.00013115,2]
[405381586,1771106739050,-80.26512646,0.00013115,2]
[405381611,1771107032265,-618.47,0.00013392,2]
[405381612,1771107032273,-196.00785732,0.00013669,2]
[405381613,1771107032362,-422.46214268,0.00013669,2]
[405381614,1771107032371,-618.47,0.00013946,2]
[405381615,1771107032381,-618.47,0.00014223,2]
[405381616,1771107032390,-250.0,0.00014426,2]
[405381617,1771107032400,-618.47,0.000145,2]
[405381618,1771107032410,-618.47,0.00014777,2]
[405381619,1771107032419,-618.47,0.00015054,2]
[405381620,1771107032429,-618.47,0.00015331,2]
[405381622,1771107032439,-618.47,0.00015609,2]
[405381623,1771107032448,-500.0,0.00015671,2]
[405381624,1771107032458,-618.47,0.00015886,2]
[405381625,1771107032467,-200.0,0.00016041,2]
[405381627,1771107032476,-618.47,0.00016163,2]
[405381629,1771107032485,-1200.0,0.00016439,2]
[405381630,1771107032496,-618.47,0.0001644,2]
[405381631,1771107032506,-618.47,0.00016717,2]
[405381632,1771107032516,-255.0,0.00016992,2]
[405381633,1771107032525,-618.47,0.00016994,2]
[405381634,1771107032535,-300.0,0.00017146,2]
[405381635,1771107032546,-300.0,0.00017146,2]
[405381636,1771107032556,-1875.70603549,0.00017147,2]
[405381637,1771107032566,-212.0,0.00017169,2]
[405381638,1771107032577,-500.0,0.00017169,2]
[405381639,1771107032586,-291.05025668,0.00017169,2]
[405381640,1771107032597,-260.65693288,0.00017169,2]
[405381641,1771107032608,-534.5628724,0.00017169,2]
[405381642,1771107032618,-50386.15358296,0.0001717,2]
[405381643,1771107032630,-776.97,0.0001717,2]
[405381644,1771107032641,-1554.81131123,0.0001717,2]
[405381645,1771107032664,-1292.2457146,0.0001717,2]
[405381646,1771107032675,-2229.71779747,0.0001717,2]
[405381647,1771107032694,-856.63891136,0.0001717,2]
[405381648,1771107032954,-238211.98578564,0.0001717,2]
[405381649,1771107032966,-3639.61909237,0.0001717,2]
[405381658,1771107038311,-500.0,0.00017169,2]
[405381659,1771107038321,-500.0,0.00017169,2]
[405381660,1771107038331,-5870.9272291,0.0001717,2]
[405381661,1771107038342,-3751.93058712,0.0001717,2]
[405381664,1771107040440,-1001.19884408,0.0001717,2]
[405381665,1771107040453,-272.24010028,0.0001717,2]
[405381706,1771107046111,-2253.84616683,0.0001717,2]
[405381707,1771107046284,-2284.03804213,0.0001717,2]
[405381714,1771107136558,536.8596468,0.00017,30]
[405381715,1771107140201,979.23373411,0.00017,30]
[405381716,1771107914448,1877.24436379,0.000121,30]
[405381763,1771108231258,-407.0,0.00014217,2]
[405381765,1771108231269,-295.99999997,0.00014217,2]
[405381766,1771108231314,-1043.61000003,0.00014217,2]
[405381767,1771108231324,-603.42,0.0001663,2]
[405381768,1771108231333,-187.64,0.000167,2]
[405381769,1771108231343,-166.66,0.00016729,2]
[405381770,1771108231352,-233.0,0.00016767,2]
[405381771,1771108231361,-2083.86698577,0.00016768,2]
[405381772,1771108231381,-10078.44371312,0.00016768,2]
[405381773,1771108231393,-1892.37996375,0.00016768,2]
[405381774,1771108231434,-454.11874776,0.00016768,2]
[405381775,1771108231446,-92171.60751842,0.00016768,2]
[405381776,1771108231457,-1416.0,0.00016768,2]
[405381777,1771108231468,-5469.63784536,0.00016768,2]
[405381809,1771108239460,-1247.84626296,0.00016768,2]
[405381810,1771108239473,-518.12685528,0.00016768,2]
[405381811,1771108239484,-579.59180773,0.00016768,2]
[405381812,1771108239723,-7699.7929288,0.00016768,2]
[405381834,1771108248539,-2404737.03467105,0.00016768,2]
[405381835,1771108248548,-475.78,0.00016841,2]
[405381836,1771108248559,-712.529,0.00016869,2]
[405381837,1771108248569,-150.79566339,0.0001687,2]
[405381838,1771108248579,-181.13075373,0.00016968,2]
[405381839,1771108248589,-300.0,0.00016968,2]
[405381840,1771108248600,-300.0,0.00016968,2]
[405381841,1771108248610,-1000.0,0.0001697,2]
[405381842,1771108248621,-1000.0,0.00016978,2]
[405381843,1771108248630,-156.7,0.00017067,2]
[405381844,1771108248639,-504.21820542,0.00017069,2]
[405381845,1771108248649,-500.0,0.00017069,2]
[405381846,1771108248658,-500.0,0.00017069,2]
[405381847,1771108248667,-273.43894436,0.00017069,2]
[405381848,1771108248677,-150.0,0.00017127,2]
[405381849,1771108248687,-3240.0,0.00017185,2]
[405381850,1771108248696,-618.47,0.00017271,2]
[405381851,1771108248706,-618.47,0.00017548,2]
[405381852,1771108248715,-1192.61428547,0.0001764,2]
[405381853,1771108248725,-500.0,0.00017644,2]
[405381854,1771108248734,-10000.0,0.000179,2]
[405381855,1771108248744,-3751.41207096,0.000179,2]
[405381856,1771108248754,-180.61489329,0.000179,2]
[405381857,1771108248763,-155.0,0.00017999,2]
[405381858,1771108248772,-336856.43929532,0.00018,2]
[405381859,1771108248787,-12387144.13272866,0.00018,2]
[405381860,1771108248797,-7511.53726386,0.00018,2]
[405381861,1771108248807,-70269.61185582,0.00018,2]
[405381862,1771108248816,-1013182.8184849,0.00018,2]
[405381863,1771108248825,-583.34230586,0.00018,2]
[405381864,1771108248835,-597678.65867178,0.00018,2]
[405381865,1771108248844,-401.0,0.00018055,2]
[405381866,1771108248854,-400.0,0.00018055,2]
[405381867,1771108248863,-500.0,0.00018301,2]
[405381868,1771108248873,-698.51,0.00018356,2]
[405381869,1771108248882,-166.66,0.0001849,2]
[405381870,1771108248891,-420.0,0.000186,2]
[405381871,1771108248900,-227.68,0.00018635,2]
[405381872,1771108248914,-444.75,0.00018656,2]
[405381873,1771108248925,-200.0,0.00018667,2]
[405381874,1771108248937,-421.0,0.00018678,2]
[405381875,1771108248947,-421.0,0.00018709,2]
[405381876,1771108248958,-420.0,0.00018721,2]
[405381877,1771108248968,-421.0,0.00018763,2]
[405381878,1771108248979,-420.0,0.00018806,2]
[405381879,1771108248990,-475.78,0.00018946,2]
[405381880,1771108249000,-421.0,0.00018947,2]
[405381881,1771108249011,-420.0,0.00018982,2]
[405381882,1771108249020,-420.0,0.00018987,2]
[405381883,1771108249029,-2408.9418421,0.00019,2]
[405381884,1771108249038,-512.0,0.00019,2]
[405381885,1771108249048,-236.07174707,0.00019082,2]
[405381886,1771108249057,-421.0,0.00019097,2]
[405381887,1771108249067,-1000.0,0.00019101,2]
[405381888,1771108249076,-420.0,0.00019206,2]
[405381889,1771108249086,-420.0,0.00019219,2]
[405381890,1771108249095,-420.0,0.00019441,2]
[405381891,1771108249105,-420.0,0.00019445,2]
[405381892,1771108249115,-166.66,0.00019472,2]
[405381893,1771108249124,-421.0,0.00019532,2]
[405381894,1771108249134,-421.0,0.00019544,2]
[405381895,1771108249143,-420.0,0.00019678,2]
[405381896,1771108249153,-420.0,0.0001969,2]
[405381897,1771108249164,-420.0,0.00019818,2]
[405381898,1771108249174,-573.987784,0.0002,2]
[405381899,1771108249183,-2464.68,0.0002,2]
[405381900,1771108249194,-3950.0,0.0002,2]
[405381901,1771108249204,-1297.12795221,0.0002,2]
[405381902,1771108249214,-1047.05384319,0.0002,2]
[405381903,1771108249223,-2869.35848762,0.0002,2]
[405381904,1771108249232,-12949.88272574,0.0002,2]
[405381905,1771108249242,-152.0,0.0002,2]
[405381906,1771108249252,-151.9578629,0.0002,20]
[405381907,1771108249262,-8720.0,0.0002001,2]
[405381908,1771108249271,-420.0,0.00020085,2]
[405381909,1771108249280,-166.66,0.00020114,2]
[405381910,1771108249292,-420.0,0.00020145,2]
[405381911,1771108249301,-420.0,0.00020175,2]
[405381912,1771108249311,-421.0,0.00020274,2]
[405381913,1771108249320,-420.0,0.00020297,2]
[405381914,1771108249331,-420.0,0.00020399,2]
[405381915,1771108249341,-22711.22295678,0.000207,2]
[405381916,1771108249351,-166.66,0.00020757,2]
[405381917,1771108249360,-14162.97506239,0.00021,2]
[405381918,1771108249370,-14874.37903803,0.00021,2]
[405381919,1771108249380,-39879.9519563,0.00021,2]
[405381920,1771108249390,-475.78,0.00021051,2]
[405381921,1771108249401,-1000.0,0.00021223,2]
[405381922,1771108249411,-156.7,0.00021334,2]
[405381923,1771108249420,-166.66,0.000214,2]
[405381924,1771108249430,-57694.80680716,0.000215,2]
[405381925,1771108249440,-222.75724664,0.000215,2]
[405381926,1771108249450,-393.0,0.00021506,10]
[405381927,1771108249459,-5000.0,0.00021918,2]
[405381928,1771108249469,-3042.18,0.00021918,2]
[405381929,1771108249478,-166.93,0.00022,7]
[405381930,1771108249488,-809.46381231,0.00022,2]
[405381931,1771108249499,-163.53,0.00022,2]
[405381932,1771108249509,-160.0,0.00022,2]
[405381933,1771108249522,-166.66,0.00022043,2]
[405381934,1771108249533,-495.89901088,0.000221,2]
[405381935,1771108249542,-240.96538071,0.0002211,2]
[405381936,1771108249552,-35600.45398651,0.000225,2]
[405381937,1771108249563,-512.0,0.00022588,5]
[405381938,1771108249572,-3615.80470135,0.000226,2]
[405381939,1771108249582,-166.66,0.00022686,2]
[405381940,1771108249592,-524.79277034,0.0002271,2]
[405381941,1771108249604,-304093.28927675,0.00023,2]
[405381942,1771108249614,-1010.6598496,0.00023,2]
[405381943,1771108249623,-160.0,0.00023,2]
[405381944,1771108249633,-475.78,0.00023156,2]
[405381945,1771108249642,-597.20068665,0.000232,2]
[405381946,1771108249651,-1000.0,0.00023345,2]
[405381947,1771108249661,-200.0,0.000235,2]
[405381948,1771108249671,-1024.61989807,0.00024,2]
[405381949,1771108249680,-3600.0,0.00024,2]
[405381950,1771108249690,-1239.13002525,0.00024,2]
[405381951,1771108249699,-423.35405842,0.0002421,2]
[405381952,1771108249709,-3708.52144567,0.0002421,2]
[405381953,1771108249719,-1000.0,0.00024658,2]
[405381954,1771108249728,-167.33,0.00024658,2]